fUST/lending_fUST_20250819
["ID","MTS","AMOUNT","RATE_DAILY","PERIOD"]
[380110833,1755547855582,-498.25,0.00024383,2]
[380110834,1755547855591,-845.71,0.00024383,2]
[380110835,1755547855603,-487.05,0.00024383,2]
[380110836,1755547855612,-571.89,0.00024383,2]
[380110837,1755547855622,-813.53,0.00024383,2]
[380110838,1755547855631,-530.78,0.00024383,2]
[380110839,1755547855641,-2680.09,0.00024383,2]
[380110840,1755547855650,-545.89,0.00024383,2]
[380110841,1755547855659,-600.28,0.00024383,2]
[380110842,1755547855669,-151.78,0.00024435,7]
[380110843,1755547855678,-160.72,0.00024453,7]
[380110844,1755547855695,-299.0,0.00024507,2]
[380110845,1755547855711,-300.0,0.00024517,2]
[380110846,1755547855725,-299.0,0.00024531,7]
[380110847,1755547855741,-299.0,0.00024533,2]
[380110848,1755547855759,-151.78,0.00024535,7]
[380110849,1755547855775,-160.72,0.00024553,7]
[380110850,1755547855790,-1000.0,0.00024554,2]
[380110851,1755547855806,-299.0,0.0002456,2]
[380110852,1755547855822,-151.78,0.00024635,7]
[380110853,1755547855835,-160.72,0.00024653,7]
[380110854,1755547855848,-2260.96,0.00024657,2]
[380110855,1755547855863,-517.44,0.00024657,2]
[380110856,1755547855879,-955.03,0.00024657,2]
[380110857,1755547855897,-480.0,0.00024657,2]
[380110858,1755547855911,-1150.62,0.00024657,2]
[380110859,1755547855924,-1619.67,0.00024657,2]
[380110860,1755547855940,-498.25,0.00024657,2]
[380110861,1755547855955,-845.71,0.00024657,2]
[380110862,1755547855968,-487.05,0.00024657,2]
[380110863,1755547855983,-571.89,0.00024657,2]
[380110864,1755547855995,-813.53,0.00024657,2]
[380110865,1755547856008,-530.78,0.00024657,2]
[380110866,1755547856022,-2680.09,0.00024657,2]
[380110867,1755547856035,-545.89,0.00024657,2]
[380110868,1755547856048,-600.28,0.00024657,2]
[380110869,1755547856061,-208.0,0.0002467,2]
[380110870,1755547856075,-823.0,0.000247,2]
[380110871,1755547856088,-151.78,0.00024735,7]
[380110872,1755547856101,-160.72,0.00024753,7]
[380110873,1755547856114,-299.0,0.000248,2]
[380110874,1755547856127,-240.64884732,0.000248,2]
[380110875,1755547856142,-5000.0,0.00024811,3]
[380110876,1755547856155,-151.78,0.00024835,7]
[380110877,1755547856168,-160.76,0.00024853,7]
[380110878,1755547856181,-500.0,0.00024873,2]
[380110879,1755547856193,-200.56360519,0.00024899,2]
[380110880,1755547856206,-151.0,0.000249,7]
[380110881,1755547856220,-151.0,0.000249,7]
[380110882,1755547856233,-151.0,0.000249,7]
[380110883,1755547856246,-151.0,0.000249,7]
[380110884,1755547856258,-151.0,0.000249,7]
[380110885,1755547856271,-151.0,0.000249,7]
[380110886,1755547856284,-151.0,0.000249,7]
[380110887,1755547856297,-279.855703,0.000249,7]
[380110888,1755547856310,-151.0,0.000249,7]
[380110889,1755547856323,-279.855703,0.000249,7]
[380110890,1755547856336,-151.0,0.000249,7]
[380110891,1755547856351,-151.0,0.000249,7]
[380110892,1755547856364,-151.0,0.000249,7]
[380110893,1755547856377,-151.159913,0.000249,7]
[380110894,1755547856389,-151.0,0.000249,7]
[380110895,1755547856402,-299.766118,0.000249,7]
[380110896,1755547856415,-151.0,0.000249,7]
[380110897,1755547856428,-182.963944,0.000249,7]
[380110898,1755547856441,-182.963944,0.000249,7]
[380110899,1755547856454,-151.0,0.000249,7]
[380110900,1755547856467,-276.926434,0.000249,7]
[380110901,1755547856480,-154.962092,0.000249,7]
[380110902,1755547856494,-151.0,0.000249,7]
[380110903,1755547856508,-154.962092,0.000249,7]
[380110904,1755547856518,-185.872003,0.000249,7]
[380110905,1755547856528,-185.872003,0.000249,7]
[380110906,1755547856642,-151.0,0.000249,7]
[380110907,1755547856660,-152.947268,0.000249,7]
[380110908,1755547856670,-652.588135,0.000249,7]
[380110909,1755547856679,-256.406113,0.000249,7]
[380110910,1755547856689,-652.588135,0.000249,7]
[380110911,1755547856699,-256.406113,0.000249,7]
[380110912,1755547856708,-261.151307,0.000249,7]
[380110913,1755547856716,-239.039165,0.000249,7]
[380110914,1755547856726,-261.151307,0.000249,7]
[380110915,1755547856735,-151.0,0.000249,7]
[380110916,1755547856745,-151.0,0.000249,7]
[380110917,1755547856754,-231.982685,0.000249,7]
[380110918,1755547856763,-231.982685,0.000249,7]
[380110919,1755547856772,-151.0,0.000249,7]
[380110920,1755547856781,-191.878216,0.000249,7]
[380110921,1755547856790,-191.878216,0.000249,7]
[380110922,1755547856802,-151.0,0.000249,7]
[380110923,1755547856813,-151.0,0.000249,7]
[380110924,1755547856822,-151.0,0.000249,7]
[380110925,1755547856832,-151.0,0.000249,7]
[380110926,1755547856841,-151.0,0.000249,7]
[380110927,1755547856851,-151.0,0.000249,7]
[380110928,1755547856860,-151.0,0.000249,7]
[380110929,1755547856869,-151.0,0.000249,7]
[380110930,1755547856880,-216.85420361,0.000249,7]
[380110931,1755547856893,-151.0,0.000249,7]
[380110932,1755547856903,-151.0,0.000249,7]
[380110933,1755547856913,-915.140867,0.000249,7]
[380110934,1755547856923,-915.140867,0.000249,7]
[380110935,1755547856933,-151.0,0.000249,7]
[380110936,1755547856943,-843.81736472,0.000249,7]
[380110937,1755547856952,-249.076445,0.000249,7]
[380110938,1755547856962,-249.076445,0.000249,7]
[380110939,1755547856972,-151.0,0.000249,7]
[380110940,1755547856981,-151.0,0.000249,7]
[380110941,1755547856990,-173.629961,0.000249,7]
[380110942,1755547856999,-153.549071,0.000249,7]
[380110943,1755547857008,-151.0,0.000249,7]
[380110944,1755547857018,-417.15472785,0.000249,3]
[380110945,1755547857027,-151.0,0.000249,7]
[380110946,1755547857036,-151.0,0.000249,7]
[380110947,1755547857045,-358.722457,0.000249,7]
[380110948,1755547857055,-358.722457,0.000249,7]
[380110949,1755547857064,-151.0,0.000249,7]
[380110950,1755547857073,-151.0,0.000249,7]
[380110951,1755547857082,-211.410836,0.000249,7]
[380110952,1755547857091,-151.0,0.000249,7]
[380110953,1755547857100,-211.410836,0.000249,7]
[380110954,1755547857109,-151.0,0.000249,7]
[380110955,1755547857119,-151.0,0.000249,7]
[380110956,1755547857129,-151.0,0.000249,7]
[380110957,1755547857138,-151.0,0.000249,7]
[380110958,1755547857148,-151.0,0.000249,7]
[380110959,1755547857157,-83637.7666655,0.000249,2]
[380110960,1755547857292,-1013.74689765,0.000249,2]
[380110961,1755547857487,-294.11830118,0.00019178,2]
[380110962,1755547857497,-480.0,0.00019452,2]
[380110963,1755547857507,-110.00582025,0.00019726,2]
[380110964,1755547857649,-480.0,0.00019178,2]
[380110965,1755547857658,-480.0,0.00019178,2]
[380110966,1755547857668,-581.12333982,0.00019178,2]
[380110967,1755547857678,-480.0,0.00019178,2]
[380110968,1755547857688,-480.0,0.00019452,2]
[380110969,1755547857697,-460.0,0.00019452,2]
[380110970,1755547857707,-325.0524238,0.00019452,2]
[380110971,1755547857717,-369.99417975,0.00019726,2]
[380110972,1755547857726,-480.0,0.00019726,2]
[380110973,1755547857735,-441.10779397,0.0002,2]
[380110974,1755547857744,-581018.95875985,0.000249,2]
[380110975,1755547857754,-151.0,0.000249,7]
[380110976,1755547857763,-151.0,0.000249,7]
[380110977,1755547857773,-228.539057,0.000249,7]
[380110978,1755547857781,-228.539057,0.000249,7]
[380110979,1755547857789,-152.384671,0.000249,7]
[380110980,1755547857798,-1353.520925,0.000249,7]
[380110981,1755547857811,-151.0,0.000249,7]
[380110982,1755547857820,-1353.520925,0.000249,7]
[380110983,1755547857829,-151.0,0.000249,7]
[380110984,1755547857838,-151.0,0.000249,7]
[380110985,1755547857849,-165.03111,0.000249,7]
[380110986,1755547857858,-151.0,0.000249,7]
[380110987,1755547857867,-151.0,0.000249,7]
[380110988,1755547857878,-2260.96,0.00024931,2]
[380110989,1755547857887,-517.44,0.00024931,2]
[380110990,1755547857896,-955.03,0.00024931,2]
[380110991,1755547857905,-480.0,0.00024931,2]
[380110992,1755547857915,-1150.62,0.00024931,2]
[380110993,1755547857924,-1619.67,0.00024931,2]
[380110994,1755547857936,-498.25,0.00024931,2]
[380110995,1755547857945,-487.05,0.00024931,2]
[380110996,1755547857955,-571.89,0.00024931,2]
[380110997,1755547857964,-813.53,0.00024931,2]
[380110998,1755547857973,-530.78,0.00024931,2]
[380110999,1755547857983,-2680.09,0.00024931,2]
[380111000,1755547857992,-545.89,0.00024931,2]
[380111001,1755547858001,-600.28,0.00024931,2]
[380111002,1755547858010,-340.0001549,0.00024932,2]
[380111003,1755547858019,-1358.64061898,0.00024932,2]
[380111004,1755547858028,-151.78,0.00024935,7]
[380111005,1755547858038,-700.0,0.00024961,2]
[380111006,1755547858047,-434.64677967,0.00024963,2]
[380111007,1755547858056,-208.0,0.00025,2]
[380111008,1755547858066,-151.767098,0.00025,10]
[380111009,1755547858075,-151.78,0.00025035,7]
[380111010,1755547858083,-240.64884729,0.0002504,2]
[380111011,1755547858094,-732.16,0.00025062,2]
[380111012,1755547858103,-1500.0,0.00025101,2]
[380111013,1755547858111,-151.78,0.00025135,7]
[380111014,1755547858121,-2260.96,0.00025205,2]
[380111015,1755547858130,-517.44,0.00025205,2]
[380111016,1755547858139,-955.03,0.00025205,2]
[380111017,1755547858149,-212.74256833,0.00025205,2]
[380111018,1755547858158,-1150.62,0.00025205,2]
[380111019,1755547858167,-1619.67,0.00025205,2]
[380111020,1755547858176,-498.25,0.00025205,2]
[380111021,1755547858188,-487.05,0.00025205,2]
[380111022,1755547858197,-571.89,0.00025205,2]
[380111023,1755547858206,-813.53,0.00025205,2]
[380111024,1755547858215,-530.78,0.00025205,2]
[380111025,1755547858224,-2680.09,0.00025205,2]
[380111026,1755547858233,-545.89,0.00025205,2]
[380111027,1755547858242,-600.28,0.00025205,2]
[380111028,1755547858251,-151.78,0.00025235,7]
[380111029,1755547858260,-240.64884729,0.00025281,2]
[380111030,1755547858270,-261.80928788,0.00025297,2]
[380111031,1755547858279,-1554.29,0.000253,7]
[380111032,1755547858288,-5926.73,0.000253,7]
[380111033,1755547858297,-151.78,0.00025335,7]
[380111034,1755547858306,-299.0,0.00025339,2]
[380111035,1755547858315,-299.0,0.00025344,2]
[380111036,1755547858325,-171.861,0.00025345,2]
[380111037,1755547858423,-299.0,0.00025359,2]
[380111038,1755547858435,-6108.2360852,0.00025371,4]
[380111039,1755547858444,-5000.0,0.00025371,2]
[380111040,1755547858453,-5000.0,0.00025371,2]
[380111041,1755547858462,-5000.0,0.00025371,2]
[380111042,1755547858471,-5000.0,0.00025371,2]
[380111043,1755547858480,-299.0,0.00025407,2]
[380111044,1755547858489,-151.78,0.00025435,7]
[380111045,1755547858498,-2261.06,0.00025479,2]
[380111046,1755547858509,-517.57,0.00025479,2]
[380111047,1755547858518,-955.21762099,0.00025479,2]
[380111048,1755547858527,-1150.64,0.00025479,2]
[380111049,1755547858537,-1619.89,0.00025479,2]
[380111050,1755547858546,-498.29,0.00025479,2]
[380111051,1755547858555,-487.1,0.00025479,2]
[380111052,1755547858564,-572.03,0.00025479,2]
[380111053,1755547858573,-813.75,0.00025479,2]
[380111054,1755547858583,-530.97,0.00025479,2]
[380111055,1755547858592,-2680.26,0.00025479,2]
[380111056,1755547858601,-546.12895442,0.00025479,2]
[380111057,1755547858611,-600.34121185,0.00025479,2]
[380111058,1755547858620,-12494.08,0.000255,2]
[380111059,1755547858629,-684.15,0.000255,7]
[380111060,1755547858638,-151.0,0.000255,7]
[380111061,1755547858647,-286.35385,0.000255,7]
[380111062,1755547858656,-151.0,0.000255,7]
[380111063,1755547858665,-286.35385,0.000255,7]
[380111064,1755547858675,-414.830601,0.000255,7]
[380111065,1755547858685,-414.830601,0.000255,7]
[380111066,1755547858694,-151.0,0.000255,7]
[380111067,1755547858703,-151.0,0.000255,7]
[380111068,1755547858712,-240.64884729,0.00025521,2]
[380111069,1755547858721,-151.78,0.00025535,7]
[380111070,1755547858730,-299.0,0.00025614,2]
[380111071,1755547858740,-151.78,0.00025635,7]
[380111072,1755547858750,-500.0,0.00025648,9]
[380111073,1755547858759,-2000.0,0.00025649,2]
[380111074,1755547858768,-299.0,0.00025727,2]
[380111075,1755547858778,-299.0,0.00025732,2]
[380111076,1755547858787,-151.78,0.00025735,7]
[380111077,1755547858796,-240.64884729,0.00025761,2]
[380111078,1755547858809,-299.0,0.00025815,2]
[380111079,1755547858818,-151.78,0.00025835,7]
[380111080,1755547858827,-299.0,0.00025862,2]
[380111081,1755547858836,-151.78,0.00025935,7]
[380111082,1755547858846,-334.33153667,0.00025969,2]
[380111083,1755547858856,-299.0,0.0002599,2]
[380111084,1755547858865,-240.64884729,0.00026002,2]
[380111085,1755547858875,-151.78,0.00026035,7]
[380111086,1755547858885,-1000.0,0.00026035,20]
[380111087,1755547858894,-700.0,0.00026057,2]
[380111088,1755547858903,-878.59,0.00026065,2]
[380111089,1755547858912,-300.0,0.00026124,2]
[380111090,1755547858922,-151.82122941,0.00026135,7]
[380111091,1755547858931,-299.0,0.00026164,2]
[380111092,1755547858942,-2500.0,0.00026197,2]
[380111093,1755547858951,-800.0,0.00026213,2]
[380111094,1755547858960,-240.64884729,0.00026242,2]
[380111095,1755547858969,-300.0,0.00026311,7]
[380111096,1755547858978,-800.0,0.00026328,2]
[380111097,1755547858987,-299.0,0.00026352,2]
[380111098,1755547858996,-299.0,0.00026405,2]
[380111099,1755547859005,-800.0,0.00026413,2]
[380111100,1755547859014,-299.0,0.00026415,2]
[380111101,1755547859024,-800.0,0.00026429,2]
[380111102,1755547859033,-240.64884729,0.00026482,2]
[380111103,1755547859043,-153.0,0.00026521,2]
[380111104,1755547859051,-151.0,0.00026576,2]
[380111105,1755547859060,-151.0,0.00026576,2]
[380111106,1755547859070,-151.0,0.00026576,2]
[380111107,1755547859079,-151.0,0.00026576,2]
[380111108,1755547859088,-151.0,0.00026576,2]
[380111109,1755547859098,-151.0,0.00026576,2]
[380111110,1755547859107,-151.0,0.00026576,2]
[380111111,1755547859116,-151.0,0.00026576,2]
[380111112,1755547859125,-151.0,0.00026576,2]
[380111113,1755547859134,-151.0,0.00026576,2]
[380111114,1755547859143,-151.0,0.00026576,2]
[380111115,1755547859152,-151.0,0.00026576,2]
[380111116,1755547859161,-151.0,0.00026576,2]
[380111117,1755547859171,-151.0,0.00026576,2]
[380111118,1755547859180,-151.0,0.00026576,2]
[380111119,1755547859190,-500.0,0.00026576,2]
[380111120,1755547859199,-151.0,0.00026576,2]
[380111121,1755547859209,-151.0,0.00026576,2]
[380111122,1755547859218,-151.0,0.00026576,2]
[380111123,1755547859227,-151.0,0.00026576,2]
[380111124,1755547859238,-500.0,0.00026576,2]
[380111125,1755547859248,-500.0,0.00026576,2]
[380111126,1755547859257,-151.22130231,0.00026576,2]
[380111127,1755547859266,-277.08633534,0.00026576,2]
[380111128,1755547859275,-151.0,0.00026576,2]
[380111129,1755547859285,-151.0,0.00026576,2]
[380111130,1755547859293,-151.0,0.00026576,2]
[380111131,1755547859303,-151.0,0.00026576,2]
[380111132,1755547859313,-151.09477389,0.00026576,2]
[380111133,1755547859322,-299.0,0.00026684,2]
[380111134,1755547859332,-1554.29,0.000267,7]
[380111135,1755547859341,-5926.73,0.000267,7]
[380111136,1755547859351,-12671.21867243,0.000267,7]
[380111137,1755547859360,-2067.83,0.00026701,2]
[380111138,1755547859369,-192.549834,0.00026712,2]
[380111139,1755547859378,-240.64884729,0.00026723,2]
[380111140,1755547859388,-3000.0,0.00026745,2]
[380111141,1755547859397,-700.0,0.00026769,2]
[380111142,1755547859406,-84345.51871075,0.00026778,2]
[380111143,1755547859416,-700.0,0.00026796,2]
[380111144,1755547859425,-1200.0,0.00026798,2]
[380111145,1755547859435,-2000.0,0.000268,2]
[380111146,1755547859445,-500.0,0.000268,7]
[380111147,1755547859454,-500.0,0.000268,7]
[380111148,1755547859463,-500.0,0.000268,7]
[380111149,1755547859473,-500.0,0.000268,7]
[380111150,1755547859482,-500.0,0.000268,7]
[380111151,1755547859492,-500.0,0.000268,7]
[380111152,1755547859501,-282.75038961,0.000268,7]
[380111153,1755547859510,-155.0,0.000268,3]
[380111154,1755547859520,-155.0,0.000268,3]
[380111155,1755547859530,-179.86871889,0.000268,3]
[380111156,1755547859540,-326.0,0.000268,3]
[380111157,1755547859550,-326.0,0.000268,3]
[380111158,1755547859559,-326.0,0.000268,3]
[380111159,1755547859569,-326.0,0.000268,3]
[380111160,1755547859578,-326.0,0.000268,3]
[380111161,1755547859588,-326.0,0.000268,3]
[380111162,1755547859598,-326.0,0.000268,3]
[380111163,1755547859607,-326.0,0.000268,3]
[380111164,1755547859618,-326.0,0.000268,3]
[380111165,1755547859627,-326.0,0.000268,3]
[380111166,1755547859637,-326.0,0.000268,3]
[380111167,1755547859646,-326.0,0.000268,3]
[380111168,1755547859656,-326.0,0.000268,3]
[380111169,1755547859666,-326.0,0.000268,3]
[380111170,1755547859675,-326.0,0.000268,3]
[380111171,1755547859686,-326.0,0.000268,3]
[380111172,1755547859695,-326.0,0.000268,3]
[380111173,1755547859704,-326.0,0.000268,3]
[380111174,1755547859714,-326.0,0.000268,3]
[380111175,1755547859723,-326.0,0.000268,3]
[380111176,1755547859732,-326.0,0.000268,3]
[380111177,1755547859742,-326.0,0.000268,3]
[380111178,1755547859752,-326.0,0.000268,3]
[380111179,1755547859762,-326.0,0.000268,3]
[380111180,1755547859771,-326.0,0.000268,3]
[380111181,1755547859781,-326.0,0.000268,3]
[380111182,1755547859790,-326.0,0.000268,3]
[380111183,1755547859800,-326.0,0.000268,3]
[380111184,1755547859813,-326.0,0.000268,3]
[380111185,1755547859822,-326.0,0.000268,3]
[380111186,1755547859831,-326.0,0.000268,3]
[380111187,1755547859840,-326.0,0.000268,3]
[380111188,1755547859850,-326.0,0.000268,3]
[380111189,1755547859860,-326.0,0.000268,3]
[380111190,1755547859869,-326.0,0.000268,3]
[380111191,1755547859879,-326.0,0.000268,3]
[380111192,1755547859889,-326.0,0.000268,3]
[380111193,1755547859898,-326.0,0.000268,3]
[380111194,1755547859908,-326.0,0.000268,3]
[380111195,1755547859917,-326.0,0.000268,3]
[380111196,1755547859927,-326.0,0.000268,3]
[380111197,1755547859937,-326.0,0.000268,3]
[380111198,1755547859946,-326.0,0.000268,3]
[380111199,1755547859955,-326.0,0.000268,3]
[380111200,1755547859965,-326.0,0.000268,3]
[380111201,1755547859974,-343.87080955,0.000268,3]
[380111202,1755547859984,-500.0,0.000268,7]
[380111203,1755547859994,-500.0,0.000268,7]
[380111204,1755547860003,-500.0,0.000268,7]
[380111205,1755547860013,-500.0,0.000268,7]
[380111206,1755547860023,-215.63953318,0.000268,7]
[380111207,1755547860032,-12683.78573522,0.000268,3]
[380111208,1755547860042,-161.0,0.000268,3]
[380111209,1755547860052,-159.38048776,0.000268,3]
[380111210,1755547860061,-232.18122251,0.000268,3]
[380111211,1755547860071,-160.0,0.000268,3]
[380111212,1755547860081,-1200.0,0.00026819,2]
[380111213,1755547860091,-500.0,0.00026833,2]
[380111214,1755547860101,-151.0,0.0002685,2]
[380111215,1755547860111,-151.0,0.0002685,2]
[380111216,1755547860120,-151.0,0.0002685,2]
[380111217,1755547860130,-151.0,0.0002685,2]
[380111218,1755547860221,-151.0,0.0002685,2]
[380111219,1755547860231,-500.0,0.0002685,2]
[380111220,1755547860243,-151.0,0.0002685,2]
[380111221,1755547860253,-153.26290523,0.0002685,2]
[380111222,1755547860263,-500.0,0.0002685,2]
[380111223,1755547860272,-500.0,0.0002685,2]
[380111224,1755547860282,-151.0,0.0002685,2]
[380111225,1755547860291,-151.0,0.0002685,2]
[380111226,1755547860301,-700.0,0.00026862,2]
[380111227,1755547860311,-299.0,0.00026863,2]
[380111228,1755547860321,-1200.0,0.00026865,2]
[380111229,1755547860331,-150.0,0.0002687,2]
[380111230,1755547860341,-151.767098,0.0002688,7]
[380111231,1755547860351,-700.0,0.00026888,2]
[380111232,1755547860361,-299.0,0.00026891,2]
[380111233,1755547860370,-1152.0,0.0002692,2]
[380111234,1755547860380,-700.0,0.00026943,2]
[380111235,1755547860390,-150.0,0.00026953,2]
[380111236,1755547860400,-700.0,0.00026961,2]
[380111237,1755547860409,-240.64884729,0.00026963,2]
[380111238,1755547860420,-3944.33306647,0.00026965,6]
[380111239,1755547860429,-700.0,0.00026969,2]
[380111240,1755547860440,-1430.12871513,0.00026989,10]
[380111241,1755547860450,-12683.78573522,0.00027,3]
[380111242,1755547860460,-263.7933146,0.00027,60]
[380111243,1755547860470,-160.0,0.00027,3]
[380111244,1755547860480,-694.07827821,0.00027,45]
[380111245,1755547860490,-12494.08,0.00027,2]
[380111246,1755547860499,-684.15,0.00027,7]
[380111247,1755547860509,-216.85420361,0.00027,3]
[380111248,1755547860520,-160.0,0.00027,3]
[380111249,1755547860530,-843.81736472,0.00027,3]
[380111250,1755547860540,-417.15472785,0.00027,3]
[380111251,1755547860559,-160.0,0.00027,3]
[380111252,1755547860568,-375.82681177,0.00027,3]
[380111253,1755547860578,-500.0,0.00027021,2]
[380111254,1755547860587,-700.0,0.00027026,2]
[380111255,1755547860597,-156.9,0.00027035,7]
[380111256,1755547860607,-150.0,0.00027036,2]
[380111257,1755547860616,-500.0,0.00027046,2]
[380111258,1755547860626,-151.0,0.0002706,7]
[380111259,1755547860635,-151.0,0.0002706,7]
[380111260,1755547860645,-151.0,0.0002706,7]
[380111261,1755547860655,-151.0,0.0002706,7]
[380111262,1755547860664,-151.0,0.0002706,7]
[380111263,1755547860674,-151.0,0.0002706,7]
[380111264,1755547860685,-151.0,0.0002706,7]
[380111265,1755547860694,-151.0,0.0002706,7]
[380111266,1755547860705,-151.0,0.0002706,7]
[380111267,1755547860716,-151.0,0.0002706,7]
[380111268,1755547860726,-151.0,0.0002706,7]
[380111269,1755547860735,-151.0,0.0002706,7]
[380111270,1755547860744,-151.0,0.0002706,7]
[380111271,1755547860754,-237.309282,0.0002706,7]
[380111272,1755547860764,-151.0,0.0002706,7]
[380111273,1755547860773,-151.0,0.0002706,7]
[380111274,1755547860783,-151.0,0.0002706,7]
[380111275,1755547860793,-151.0,0.0002706,7]
[380111276,1755547860807,-151.0,0.0002706,7]
[380111277,1755547860816,-279.855703,0.0002706,7]
[380111278,1755547860826,-151.0,0.0002706,7]
[380111279,1755547860836,-279.855703,0.0002706,7]
[380111280,1755547860847,-279.855703,0.0002706,7]
[380111281,1755547860856,-151.0,0.0002706,7]
[380111282,1755547860866,-151.0,0.0002706,7]
[380111283,1755547860877,-279.855703,0.0002706,7]
[380111284,1755547860887,-151.0,0.0002706,7]
[380111285,1755547860896,-279.855703,0.0002706,7]
[380111286,1755547860905,-151.0,0.0002706,7]
[380111287,1755547860915,-279.855703,0.0002706,7]
[380111288,1755547860925,-279.855703,0.0002706,7]
[380111289,1755547860935,-151.0,0.0002706,7]
[380111290,1755547860945,-279.855703,0.0002706,7]
[380111291,1755547860954,-151.0,0.0002706,7]
[380111292,1755547860964,-279.855703,0.0002706,7]
[380111293,1755547860974,-151.0,0.0002706,7]
[380111294,1755547860983,-223.162505,0.0002706,7]
[380111295,1755547860993,-279.855703,0.0002706,7]
[380111296,1755547861003,-279.855703,0.0002706,7]
[380111297,1755547861012,-279.855703,0.0002706,7]
[380111298,1755547861022,-279.855703,0.0002706,7]
[380111299,1755547861031,-279.855703,0.0002706,7]
[380111300,1755547861041,-279.855703,0.0002706,7]
[380111301,1755547861051,-279.855703,0.0002706,7]
[380111302,1755547861061,-279.855703,0.0002706,7]
[380111303,1755547861070,-279.855709,0.0002706,7]
[380111304,1755547861080,-151.0,0.0002706,7]
[380111305,1755547861089,-151.0,0.0002706,7]
[380111306,1755547861099,-151.0,0.0002706,7]
[380111307,1755547861108,-151.0,0.0002706,7]
[380111308,1755547861119,-151.0,0.0002706,7]
[380111309,1755547861129,-151.0,0.0002706,7]
[380111310,1755547861139,-295.828834,0.0002706,7]
[380111311,1755547861149,-151.0,0.0002706,7]
[380111312,1755547861159,-151.0,0.0002706,7]
[380111313,1755547861169,-151.0,0.0002706,7]
[380111314,1755547861178,-151.0,0.0002706,7]
[380111315,1755547861188,-182.963944,0.0002706,7]
[380111316,1755547861197,-182.963944,0.0002706,7]
[380111317,1755547861207,-182.963944,0.0002706,7]
[380111318,1755547861217,-182.963944,0.0002706,7]
[380111319,1755547861228,-182.963944,0.0002706,7]
[380111320,1755547861246,-182.963944,0.0002706,7]
[380111321,1755547861256,-182.963944,0.0002706,7]
[380111322,1755547861266,-182.963944,0.0002706,7]
[380111323,1755547861275,-182.963944,0.0002706,7]
[380111324,1755547861286,-182.963944,0.0002706,7]
[380111325,1755547861296,-182.963944,0.0002706,7]
[380111326,1755547861306,-182.963944,0.0002706,7]
[380111327,1755547861316,-182.963944,0.0002706,7]
[380111328,1755547861325,-182.963944,0.0002706,7]
[380111329,1755547861335,-182.963944,0.0002706,7]
[380111330,1755547861344,-182.963944,0.0002706,7]
[380111331,1755547861354,-182.963944,0.0002706,7]
[380111332,1755547861363,-182.963937,0.0002706,7]